bitfinex-derivatives/quotes_ETHF0:USTF0_20250629
["timestamp","ask_amount","ask_price","bid_price","bid_amount"]
[1751211264227,4.57866015,2440.7,2440.6,24.656]
[1751211264733,6.95417315,2440.7,2440.6,24.656]
[1751211265434,6.95417315,2440.7,2440.3,9.4698]
[1751211265435,0.81927,2440.4,2440.3,9.4698]
[1751211265637,0.81927,2440.4,2440.3,34.1258]
[1751211265935,0.81927,2440.4,2440.3,34.94511]
[1751211266135,0.81927,2440.4,2440.3,34.1258]
[1751211268538,0.81927,2440.4,2440.3,9.4698]
[1751211268738,0.81927,2440.4,2440.3,34.1278]
[1751211269341,0.81927,2440.4,2440.3,34.94711]
[1751211269836,0.81927,2440.4,2440.3,34.1278]
[1751211272541,0.81927,2440.4,2440.3,34.94711]
[1751211272739,0.81927,2440.4,2440.3,34.1278]
[1751211275734,0.81927,2440.4,2440.3,30.92]
[1751211276235,0.81931,2440.3,2440.2,4.02713]
[1751211276539,0.81931,2440.3,2440.2,34.94513]
[1751211277741,0.81931,2440.3,2440.2,37.57762411]
[1751211279646,0.81931,2440.3,2440.2,36.75929411]
[1751211280343,0.81931,2440.3,2440.2,37.57863411]
[1751211281245,0.81931,2440.3,2440.2,36.75929411]
[1751211282546,0.81931,2440.3,2440.2,37.57863411]
[1751211283147,0.81931,2440.3,2440.2,36.75929411]
[1751211283631,0.81931,2440.3,2440.2,37.57863411]
[1751211284148,0.81931,2440.3,2440.2,36.75929411]
[1751211284343,0.81931,2440.3,2440.2,37.57863411]
[1751211285050,0.81931,2440.3,2440.2,6.65963411]
[1751211285346,0.81931,2440.3,2440.2,37.57863411]
[1751211288750,0.81931,2440.3,2440.2,36.75929411]
[1751211289051,0.81931,2440.3,2440.2,37.57863411]
[1751211291757,0.81931,2440.3,2440.2,34.37083411]
[1751211292152,0.81931,2440.3,2440.2,36.82578849]
[1751211292860,0.8193,2440.4,2440.3,0.81929]
[1751211293052,0.8193,2440.4,2440.3,25.47629]
[1751211293563,1.79275188,2440.4,2440.3,25.47629]
[1751211293763,1.79275188,2440.4,2440.3,24.657]
[1751211293962,1.79275188,2440.4,2440.3,25.47631]
[1751211294555,0.81931,2440.3,2440.2,5.90676849]
[1751211294755,0.81931,2440.3,2440.2,36.82476849]
[1751211297163,0.8193,2440.4,2440.3,0.81929]
[1751211297560,1.79317624,2440.4,2440.3,0.81929]
[1751211297855,0.81931,2440.3,2440.2,36.82476849]
[1751211299163,0.81931,2440.3,2440.2,34.36981411]
[1751211300158,0.81931,2440.3,2440.2,31.73732]
[1751211300458,0.81931,2440.3,2440.2,34.36981411]
[1751211300761,0.8193,2440.4,2440.3,0.81928]
[1751211301063,1.79337817,2440.4,2440.3,3.27386825]
[1751211301456,1.79337817,2440.4,2440.3,2.45458825]
[1751211302164,0.81931,2440.3,2440.2,36.82442236]
[1751211302466,1.79338817,2440.3,2440.2,36.82442236]
[1751211302960,0.97407817,2440.3,2440.2,36.82442236]
[1751211303462,1.79338817,2440.3,2440.2,36.82442236]
[1751211310272,1.79338817,2440.3,2440.2,5.90642236]
[1751211310464,1.79338817,2440.3,2440.2,36.82342236]
[1751211313470,0.97407817,2440.3,2440.2,36.82342236]
[1751211313771,0.81926,2440.5,2440.4,0.81925]
[1751211313967,1.79347276,2440.5,2440.4,28.10774411]
[1751211314567,1.79347276,2440.5,2440.4,28.83034411]
[1751211315167,0.97421276,2440.5,2440.4,28.83034411]
[1751211315358,0.97421276,2440.5,2440.4,31.28454728]
[1751211315563,0.97421276,2440.5,2440.4,32.69894728]
[1751211317573,4.02699,2440.7,2440.6,0.81921]
[1751211317871,5.00072058,2440.7,2440.6,28.10670411]
[1751211319175,1.79292058,2440.7,2440.6,28.10670411]
[1751211319776,1.79292058,2440.7,2440.6,27.28749411]
[1751211320578,1.79292058,2440.7,2440.6,24.655]
[1751211322774,0.97373058,2440.7,2440.4,3.17680317]
[1751211322977,3.45170411,2440.6,2440.5,30.914]
[1751211324677,0.81927,2440.4,2440.3,9.78267728]
[1751211324868,0.81927,2440.4,2440.3,40.69667728]
[1751211325972,0.81927,2440.4,2440.3,39.87739728]
[1751211326174,3.45176411,2440.4,2440.3,5.66200317]
[1751211326376,3.45176411,2440.4,2440.3,36.57500317]
[1751211328279,0.81927,2440.4,2440.3,36.57500317]
[1751211328980,0.81927,2440.4,2440.3,34.1208]
[1751211330975,0.81927,2440.4,2440.3,34.94011]
[1751211331488,0.81927,2440.4,2440.3,34.1208]
[1751211331677,0.81927,2440.4,2440.3,36.75329411]
[1751211331884,0.81927,2440.4,2440.3,37.57260411]
[1751211332084,0.81926,2440.5,2440.4,0.81926]
[1751211332477,0.97303993,2440.5,2440.4,0.81926]
[1751211332685,0.81921,2440.6,2440.5,0.81924]
[1751211332882,1.80212155,2440.7,2440.6,0.81921]
[1751211333181,1.80211531,2440.7,2440.6,1.54991]
[1751211335288,1.80211531,2440.7,2440.6,7.80991]
[1751211335985,1.80211531,2440.7,2440.6,6.9907]
[1751211339093,1.80211531,2440.7,2440.6,7.80991]
[1751211339992,0.98291531,2440.7,2440.6,11.56947432]
[1751211340185,0.98291531,2440.7,2440.6,12.94367432]
[1751211340491,1.80208531,2440.7,2440.6,12.94367432]
[1751211341392,0.98291531,2440.7,2440.6,12.94367432]
[1751211343604,0.81914,2440.8,2440.7,0.81917]
[1751211343893,1.8019914,2440.8,2440.7,27.50827]
[1751211344083,0.9828514,2440.8,2440.7,27.50827]
[1751211344797,1.8019914,2440.8,2440.7,27.50827]
[1751211346194,3.2078,2440.9,2440.8,0.81914]
[1751211346195,0.81913,2440.9,2440.8,0.81914]
[1751211346387,1.80162711,2440.9,2440.8,0.81914]
[1751211346594,0.81914,2440.8,2440.7,30.71605]
[1751211350094,0.81913,2440.9,2440.8,0.81913]
[1751211350296,1.80106798,2440.9,2440.8,0.81913]
[1751211350990,0.98193798,2440.9,2440.7,30.71605]
[1751211351198,0.81914,2440.8,2440.7,30.71605]
[1751211351393,0.81898,2441.3,2440.9,2.04775]
[1751211351594,0.6667,2441.4,2441.2,3.75956432]
[1751211351898,0.98175813,2441.3,2441.2,4.57856432]
[1751211352103,0.98175813,2441.3,2441.2,35.50756432]
[1751211352399,1.48566,2441.4,2441.2,35.50756432]
[1751211352699,1.48564,2441.4,2441.2,34.68856432]
[1751211352899,0.6667,2441.4,2441.3,0.81897]
[1751211353796,0.7075,2441.6,2441.5,0.8189]
[1751211354099,1.79954259,2441.6,2441.5,25.48789]
[1751211354300,0.98067259,2441.6,2441.5,25.48789]
[1751211354490,1.79954259,2441.6,2441.5,25.48789]
[1751211354695,1.79954259,2441.6,2441.5,24.669]
[1751211354894,0.8189,2441.5,2441.4,3.2078]
[1751211355197,1.5123,2441.5,2441.4,34.1488]
[1751211355803,1.5123,2441.5,2441.4,34.96774]
[1751211356807,1.5123,2441.5,2441.4,34.1488]
[1751211357803,1.5123,2441.5,2441.4,9.4658]
[1751211358001,1.5123,2441.5,2441.4,34.1458]
[1751211360602,2.9298,2441.5,2441.4,34.1458]
[1751211360906,2.9298,2441.5,2441.4,3.2078]
[1751211361109,2.9298,2441.5,2441.4,27.8838]
[1751211361811,2.9298,2441.5,2441.4,28.70274]
[1751211362008,1.5123,2441.5,2441.4,28.70274]
[1751211362211,1.5123,2441.5,2441.4,27.8838]
[1751211363411,1.5123,2441.5,2441.4,28.70274]
[1751211363713,1.5123,2441.5,2441.4,27.8838]
[1751211364409,1.5123,2441.5,2441.4,24.676]
[1751211365514,1.5123,2441.5,2441.4,25.49494]
[1751211365715,1.5123,2441.5,2441.4,24.676]
[1751211366407,1.5123,2441.5,2441.4,25.49494]
[1751211366814,1.5123,2441.5,2441.4,24.676]
[1751211367016,1.5123,2441.5,2441.4,25.49494]
[1751211367614,1.5123,2441.5,2441.4,24.676]
[1751211367915,1.5123,2441.5,2441.4,25.49494]
[1751211368415,1.5123,2441.5,2441.4,24.676]
[1751211368616,1.5123,2441.5,2441.4,25.49494]
[1751211368817,1.5123,2441.5,2441.4,24.676]
[1751211370718,1.5123,2441.5,2441.4,25.49494]
[1751211371523,1.5123,2441.5,2441.4,24.676]
[1751211373421,2.9707,2441.5,2441.4,24.676]
[1751211377628,0.81897,2441.3,2441.2,3.2078]
[1751211377826,0.81897,2441.3,2441.2,34.1268]
[1751211378127,0.819,2441.2,2441.1,0.728]
[1751211378327,0.819,2441.2,2441.0,2.45420317]
[1751211378328,0.81904,2441.1,2441.0,6.257]
[1751211378517,0.81904,2441.1,2441.0,30.926]
[1751211379120,0.81904,2441.1,2441.0,33.38020317]
[1751211379623,0.81904,2441.1,2441.0,6.257]
[1751211379930,0.81904,2441.1,2441.0,30.927]
[1751211380129,1.80042287,2441.1,2441.0,30.927]
[1751211384435,1.80042287,2441.1,2441.0,31.74607]
[1751211384732,1.80042287,2441.1,2441.0,33.20957]
[1751211385032,0.81904,2441.1,2441.0,35.66377317]
[1751211386238,0.81904,2441.1,2441.0,39.42333749]
[1751211387433,0.81902,2441.2,2441.1,0.81902]
[1751211387629,0.81902,2441.2,2441.1,2.92412]
[1751211388236,0.81902,2441.2,2441.1,5.37832317]
[1751211388838,0.81902,2441.2,2441.1,4.55930317]
[1751211389336,0.81902,2441.2,2441.1,5.37834317]
[1751211390131,3.2078,2441.5,2441.1,4.55930317]
[1751211390432,6.37876024,2442.1,2441.4,6.96736432]
[1751211390735,0.81877,2441.9,2441.8,4.57836432]
[1751211390934,0.98152184,2441.9,2441.8,29.26736432]
[1751211391234,0.98152184,2441.9,2441.8,38.74716432]
[1751211394141,0.6768,2442.3,2441.8,37.92836432]
[1751211394440,0.81874,2442.0,2441.9,1.3637]
[1751211394643,1.80302521,2442.0,2441.9,32.3317]
[1751211396043,0.98428521,2442.0,2441.9,33.15047]
[1751211396744,1.80302521,2442.0,2441.9,33.15047]
[1751211398247,0.98428521,2442.0,2441.9,33.15047]
[1751211398448,0.81867,2442.2,2442.0,0.81871]
[1751211398741,0.81867,2442.2,2442.1,29.26826432]
[1751211398947,1.80223105,2442.2,2442.1,29.26826432]
[1751211399142,0.81867,2442.2,2442.1,29.26826432]
[1751211399847,0.81867,2442.2,2442.1,28.44956432]
[1751211401143,0.81867,2442.2,2442.1,24.69]
[1751211402346,2.04676,2442.1,2441.6,6.27]
[1751211402546,0.81884,2441.7,2441.6,6.27]
[1751211402741,0.81884,2441.7,2441.6,30.963]
[1751211402937,0.81887,2441.6,2441.5,3.2078]
[1751211403141,0.81887,2441.6,2441.5,34.1738]
[1751211404148,0.81887,2441.6,2441.5,34.1728]
[1751211407253,0.7097,2441.7,2441.5,34.9917]
[1751211407550,0.81887,2441.6,2441.5,34.1728]
[1751211407851,0.81887,2441.6,2441.5,34.9917]
[1751211408155,0.81887,2441.6,2441.5,34.1728]
[1751211408843,0.81887,2441.6,2441.5,34.9917]
[1751211409253,0.81887,2441.6,2441.5,34.1728]
[1751211410353,0.81887,2441.6,2441.5,34.9917]
[1751211410853,0.81887,2441.6,2441.5,31.7839]
[1751211412557,0.81887,2441.6,2441.5,30.965]
[1751211412856,0.81887,2441.6,2441.5,31.7839]
[1751211413356,0.81887,2441.6,2441.5,30.965]
[1751211413656,0.81887,2441.6,2441.5,31.7839]
[1751211414457,1.52856,2441.7,2441.5,31.7839]
[1751211414758,0.7097,2441.7,2441.6,0.81887]
[1751211415256,1.52854,2441.7,2441.6,0.81887]
[1751211415754,0.7097,2441.7,2441.6,4.57843432]
[1751211415949,1.52854,2441.7,2441.6,1.50847]
[1751211416156,1.52854,2441.7,2441.6,5.26803432]
[1751211417057,0.7097,2441.7,2441.6,5.26803432]
[1751211417460,1.52854,2441.7,2441.6,5.26803432]
[1751211419860,0.7097,2441.7,2441.6,5.26803432]
[1751211420358,0.7097,2441.7,2441.6,1.50847]
[1751211420757,1.52854,2441.7,2441.6,0.81887]
[1751211421461,0.81887,2441.6,2441.5,35.54344432]
[1751211421959,1.52856,2441.7,2441.6,0.81887]
[1751211422151,2.51378466,2441.7,2441.6,0.81887]
[1751211423458,2.51378466,2441.7,2441.4,3.14833511]
[1751211423459,5.45448898,2441.7,2441.4,2.44803511]
[1751211423759,5.45448898,2441.7,2441.5,25.49688]
[1751211423760,0.81888,2441.6,2441.5,25.49688]
[1751211424765,1.52856,2441.7,2441.6,0.81887]
[1751211425061,2.51260667,2441.7,2441.6,0.81887]
[1751211428163,2.51258667,2441.7,2441.6,0.81887]
[1751211428464,0.81887,2441.6,2441.5,26.16138]
[1751211429564,1.52856,2441.7,2441.6,0.81887]
[1751211429765,2.51283826,2441.7,2441.6,0.81887]
[1751211434963,1.69397826,2441.7,2441.6,0.81887]
[1751211438363,0.98427826,2441.7,2441.6,0.81887]
[1751211438570,0.98427826,2441.7,2441.6,3.26690511]
[1751211438867,0.98427826,2441.7,2441.6,5.39820511]
[1751211439364,0.81873,2442.1,2441.8,0.8188]
[1751211439566,1.49358,2442.2,2442.1,0.8187]
[1751211439761,1.66017522,2442.2,2442.1,25.4947]
[1751211439961,0.98527522,2442.2,2442.1,25.4947]
[1751211440468,0.98527522,2442.2,2442.1,26.8936]
[1751211440768,1.80394522,2442.2,2442.1,26.8936]
[1751211441070,1.80394522,2442.2,2442.1,25.4947]
[1751211442569,0.98527522,2442.2,2442.1,25.4947]
[1751211443066,1.80394522,2442.2,2442.1,25.4947]
[1751211443265,0.98527522,2442.2,2442.1,25.4947]
[1751211443667,1.80394522,2442.2,2442.1,25.4947]
[1751211444168,0.98527522,2442.2,2442.1,25.4947]
[1751211444569,1.80394522,2442.2,2442.1,24.676]
[1751211445471,2.46764522,2442.2,2442.1,24.676]
[1751211445669,0.8187,2442.1,2442.0,0.7324]
[1751211445861,1.80397522,2442.1,2442.0,31.7004]
[1751211446470,0.98527522,2442.1,2442.0,32.51914]
[1751211448371,0.98527522,2442.1,2442.0,33.86434]
[1751211449172,1.80397522,2442.1,2442.0,33.86434]
[1751211450373,1.80397522,2442.1,2442.0,32.51914]
[1751211450575,0.98527522,2442.1,2442.0,32.51914]
[1751211451675,1.80397522,2442.1,2442.0,33.94164]
[1751211451876,0.98527522,2442.1,2442.0,33.94164]
[1751211452580,1.80397522,2442.1,2442.0,33.94164]
[1751211452977,0.98527522,2442.1,2442.0,33.94164]
[1751211453479,1.80397522,2442.1,2442.0,33.94164]
[1751211454376,0.98527522,2442.1,2442.0,33.94164]
[1751211454579,1.48239,2442.2,2442.1,0.8187]
[1751211454777,2.46524684,2442.2,2442.1,0.8187]
[1751211458281,1.64655684,2442.2,2442.1,4.57826432]
[1751211458778,2.46522684,2442.2,2442.1,4.57826432]
[1751211459478,1.64655684,2442.2,2442.1,4.57826432]
[1751211459678,0.98285684,2442.2,2442.1,4.57826432]
[1751211459879,1.80152684,2442.2,2442.1,4.57826432]
[1751211461172,0.81867,2442.2,2442.1,4.57826432]
[1751211461781,0.81866,2442.3,2442.2,0.81864]
[1751211461980,1.80175879,2442.3,2442.2,26.20364]
[1751211462481,1.80175879,2442.3,2442.2,26.20367]
[1751211462680,1.80175879,2442.3,2442.2,25.385]
[1751211463282,1.80175879,2442.3,2442.2,0.718]
[1751211463484,1.80175879,2442.3,2442.2,32.48767]
[1751211464886,0.98309879,2442.3,2442.2,32.48767]
[1751211469898,1.80173879,2442.3,2442.2,32.48767]
[1751211471995,1.80173879,2442.3,2442.2,35.11590254]
[1751211474798,0.98309879,2442.3,2442.2,35.11590254]
[1751211475494,0.81855,2442.6,2442.5,0.81857]
[1751211475699,2.46827372,2442.6,2442.5,28.10480254]
[1751211475993,2.46827372,2442.6,2442.5,25.47657]
[1751211477302,2.46827372,2442.6,2442.5,24.658]
[1751211480302,3.92387372,2442.6,2442.5,24.658]
[1751211481500,3.10532372,2442.6,2442.2,4.74445]
[1751211481703,0.81863,2442.4,2442.3,31.74164]
[1751211481904,1.80265372,2442.4,2442.3,31.74164]
[1751211482901,1.80265372,2442.4,2442.3,24.655]
[1751211483100,1.80262372,2442.4,2442.3,30.924]
[1751211489411,3.26052372,2442.4,2442.3,30.924]
[1751211490713,1.80262372,2442.4,2442.3,30.924]
[1751211494518,1.80262372,2442.4,2442.3,31.74264]
[1751211495918,1.80262372,2442.4,2442.3,34.37060437]
[1751211502023,1.80262372,2442.4,2442.3,35.82550437]
[1751211503720,0.98402372,2442.4,2442.3,35.82550437]
[1751211503918,2.45064826,2442.8,2442.3,41.66126874]
[1751211504118,0.98487884,2442.7,2442.6,0.81851]
[1751211504321,0.98487884,2442.7,2442.6,31.73151]
[1751211505018,2.45064826,2443.1,2443.0,0.8184]
[1751211505215,2.45064826,2443.1,2443.0,34.36636437]
[1751211505520,2.45064826,2443.2,2443.1,0.81837]
[1751211505724,3.26894826,2443.3,2443.2,0.81833]
[1751211506017,0.8183,2443.3,2443.2,28.10928437]
[1751211506221,0.81828,2443.4,2443.2,28.74976437]
[1751211506423,0.81828,2443.4,2443.3,6.263]
[1751211507324,0.81833,2443.2,2443.1,0.6702]
[1751211507521,0.81833,2443.2,2443.1,31.5982]
[1751211508625,0.81833,2443.2,2443.1,35.35030175]
[1751211508825,0.81832,2443.3,2443.1,37.63317175]
[1751211509218,0.81832,2443.3,2443.2,1.4645]
[1751211509433,0.81832,2443.3,2443.2,2.28283]
[1751211509620,0.81828,2443.4,2443.2,2.28283]
[1751211509821,1.48735,2443.5,2443.3,28.41510175]
[1751211510015,0.81825,2443.5,2443.3,29.23337175]
[1751211510423,4.02603,2443.6,2443.4,0.81827]
[1751211510623,4.02603,2443.6,2443.5,24.665]
[1751211514330,4.02603,2443.6,2443.5,25.48323]
[1751211514529,4.02603,2443.6,2443.5,26.83963]
[1751211514731,4.02603,2443.6,2443.5,26.0214]
[1751211517029,4.02603,2443.6,2443.5,26.83963]
[1751211518128,3.29126349,2443.9,2443.7,0.81814]
[1751211518335,4.10936349,2443.9,2443.8,34.67210175]
[1751211518634,3.29126349,2443.9,2443.8,35.48823175]
[1751211518834,4.10936349,2443.9,2443.8,30.918]
[1751211519029,4.10936349,2443.9,2443.6,2.0714]
[1751211519030,0.81817,2443.7,2443.6,6.9739]
[1751211519232,0.81817,2443.7,2443.6,32.4791]
[1751211520736,0.81817,2443.7,2443.6,30.948]
[1751211520932,0.81817,2443.7,2443.6,30.951]
[1751211521132,2.96327,2443.7,2443.6,30.951]
[1751211523131,1.54097,2443.7,2443.6,30.951]
[1751211526131,1.54405,2443.8,2443.6,34.70310175]
[1751211526335,1.54405,2443.8,2443.6,35.52128175]
[1751211526530,1.54405,2443.8,2443.7,0.7341]
[1751211527038,1.54405,2443.8,2443.7,1.55227]
[1751211527237,0.7259,2443.8,2443.7,1.55227]
[1751211527740,4.10938349,2443.9,2443.8,0.81813]
[1751211528041,4.10938349,2443.9,2443.8,24.686]
[1751211530139,4.10938349,2443.9,2443.8,25.50413]
[1751211530835,3.29126349,2443.9,2443.8,25.50413]
[1751211531034,0.08346349,2443.9,2443.8,29.25623175]
[1751211531341,0.08346349,2443.9,2443.8,30.59773175]
[1751211532438,0.08346349,2443.9,2443.8,26.84563]
[1751211532637,0.08346349,2443.9,2443.8,30.59773175]
[1751211533945,4.02582,2444.2,2444.1,0.81803]
[1751211534143,3.2078,2444.2,2444.1,35.53913175]
[1751211534444,1.49499,2444.3,2444.2,0.818]
[1751211534645,0.81796,2444.4,2444.3,0.81797]
[1751211534848,4.02572,2444.5,2444.4,0.81793]
[1751211535033,4.02572,2444.5,2444.4,6.286]
[1751211535240,0.8179,2444.5,2444.4,6.9914]
[1751211535436,1.4949,2444.5,2444.4,7.80933]
[1751211535632,1.4949,2444.5,2444.4,0.7054]
[1751211535944,1.4949,2444.5,2444.4,30.98]
[1751211540140,2.04434,2445.0,2444.4,30.98]
[1751211540346,0.81783,2444.7,2444.6,3.2078]
[1751211540545,0.81783,2444.7,2444.6,27.8978]
[1751211541556,2.88143,2444.7,2444.6,27.8978]
[1751211541948,0.81783,2444.7,2444.6,28.71567]
[1751211542248,0.6918,2444.8,2444.7,0.81783]
[1751211542857,1.5096,2444.8,2444.7,0.81783]
[1751211543049,0.6918,2444.8,2444.7,0.81783]
[1751211543250,1.5096,2444.8,2444.7,0.81783]
[1751211543450,0.81783,2444.7,2444.6,29.39075]
[1751211543652,0.81783,2444.7,2444.6,3.2078]
[1751211543860,0.81783,2444.7,2444.6,34.2078]
[1751211544255,0.81783,2444.7,2444.6,35.02567]
[1751211545660,0.81783,2444.7,2444.6,34.2078]
[1751211546159,0.81783,2444.7,2444.6,35.02567]
[1751211546764,0.81783,2444.7,2444.6,34.2078]
[1751211548861,2.17293,2444.7,2444.6,34.2078]
[1751211549156,2.17293,2444.7,2444.6,34.1988]
[1751211550963,2.17293,2444.7,2444.6,9.4918]
[1751211551155,2.17293,2444.7,2444.6,34.1998]
[1751211553660,2.17293,2444.7,2444.6,3.2078]
[1751211553966,2.17293,2444.7,2444.6,27.9198]
[1751211558279,3.13834377,2444.7,2444.6,27.9198]
[1751211560966,0.818,2444.2,2444.1,3.26606511]
[1751211561171,0.818,2444.2,2444.1,10.1822]
[1751211561470,0.818,2444.2,2444.1,34.8842]
[1751211561970,0.818,2444.2,2444.1,10.1822]
[1751211562171,0.818,2444.2,2444.1,34.1968]
[1751211563164,1.78530522,2444.2,2444.1,34.1968]
[1751211566172,0.818,2444.2,2444.1,34.1968]
[1751211568474,0.818,2444.2,2444.1,9.4918]
[1751211568670,4.57010175,2444.2,2444.1,9.4918]
[1751211568872,5.53719406,2444.2,2444.1,27.9088]
[1751211569066,4.57010175,2444.2,2444.1,27.9088]
[1751211570676,6.25222865,2444.2,2444.1,3.2078]
[1751211570879,6.25222865,2444.2,2444.1,27.9068]
[1751211572577,0.81807,2444.0,2443.9,0.6904]
[1751211572783,0.8181,2443.9,2443.8,10.2018]
[1751211572982,0.8181,2443.9,2443.8,34.9018]
[1751211573584,0.8181,2443.9,2443.8,9.5098]
[1751211573784,0.8181,2443.9,2443.8,34.2088]
[1751211574487,0.8181,2443.9,2443.8,6.302]
[1751211574683,0.8181,2443.9,2443.8,31.002]
[1751211587394,0.8181,2443.9,2443.8,31.82013]
[1751211587889,0.8181,2443.9,2443.8,31.002]
[1751211588592,0.8181,2443.9,2443.8,34.75410175]
[1751211588897,0.8181,2443.9,2443.8,37.59192175]
[1751211590397,0.81809,2444.0,2443.8,37.59192175]
[1751211590703,0.81809,2444.0,2443.9,0.8181]
[1751211591185,1.78444196,2444.0,2443.9,2.1872]
[1751211592797,1.78444196,2444.0,2443.9,1.3691]
[1751211593500,1.78444196,2444.0,2443.9,2.1872]
[1751211593801,0.96635196,2444.0,2443.9,2.1872]
[1751211593988,0.7257,2444.3,2444.0,0.81804]
[1751211593989,0.81804,2444.1,2444.0,0.81804]
[1751211594194,1.78464221,2444.1,2444.0,30.87444]
[1751211594702,0.96660221,2444.1,2444.0,30.87444]
[1751211596097,1.78463221,2444.1,2444.0,30.87444]
[1751211599203,0.96660221,2444.1,2444.0,30.87444]
[1751211599400,0.96660221,2444.1,2444.0,34.62654175]
[1751211599599,0.96710543,2444.1,2444.0,34.62657175]
[1751211602605,1.78513543,2444.1,2444.0,34.62657175]
[1751211603102,0.96710543,2444.1,2444.0,34.62657175]
[1751211606094,1.78513543,2444.1,2444.0,3.9091]
[1751211606302,1.78425019,2444.1,2444.0,27.8868]
[1751211606602,2.50805019,2444.1,2444.0,27.8868]
[1751211608405,1.69002019,2444.1,2444.0,28.70487]
[1751211608609,2.50805019,2444.1,2444.0,28.70487]
[1751211609105,2.50805019,2444.1,2444.0,27.8868]
[1751211613305,2.50805019,2444.1,2444.0,3.2078]
[1751211613501,6.26015194,2444.1,2444.0,27.8818]
[1751211613808,7.63705194,2444.1,2444.0,27.8818]
[1751211615905,3.88495019,2444.1,2444.0,27.8818]
[1751211620814,3.88495019,2444.1,2444.0,3.2078]
[1751211621218,3.88495019,2444.1,2444.0,27.8748]
[1751211627316,0.8181,2443.9,2443.8,2.44803511]
[1751211627517,0.96622019,2443.9,2443.8,31.75913]
[1751211627818,0.96622019,2443.9,2443.8,30.941]
[1751211628116,0.96622019,2443.9,2443.8,31.75913]
[1751211631421,0.81808,2444.0,2443.9,0.8181]
[1751211631720,1.78525531,2444.0,2443.9,0.8181]
[1751211631921,1.78525531,2444.0,2443.9,1.5178]
[1751211634219,0.96717531,2444.0,2443.9,1.5178]
[1751211634622,1.78524531,2444.0,2443.9,1.5178]
[1751211638025,1.78524531,2444.0,2443.9,26.1708]
[1751211640028,0.96717531,2444.0,2443.9,26.1708]
[1751211640431,1.78524531,2444.0,2443.9,26.1708]
[1751211641529,0.96717531,2444.0,2443.9,31.82663511]
[1751211642538,1.78524531,2444.0,2443.9,31.82663511]
[1751211643128,0.96717531,2444.0,2443.9,31.82663511]
[1751211644228,1.78524531,2444.0,2443.9,31.82663511]
[1751211646836,1.78524531,2444.0,2443.9,31.00853511]
[1751211647832,1.78524531,2444.0,2443.9,6.35553511]
[1751211648034,1.78524531,2444.0,2443.9,31.00553511]
[1751211648223,1.78524531,2444.0,2443.9,28.5575]
[1751211651737,1.78524531,2444.0,2443.9,29.3756]
[1751211651939,0.96717531,2444.0,2443.9,29.3756]
[1751211652441,1.78524531,2444.0,2443.9,29.3756]
[1751211653141,0.96717531,2444.0,2443.9,29.3756]
[1751211653341,0.96717531,2444.0,2443.9,31.82363511]
[1751211653533,0.96717531,2444.0,2443.9,33.82663511]
[1751211653734,0.96717531,2444.0,2443.9,37.57527513]
[1751211654136,0.81802,2444.2,2444.1,0.81803]
[1751211654334,1.78610235,2444.2,2444.1,25.46703]
[1751211655842,0.96808235,2444.2,2444.1,35.48367002]
[1751211657243,0.96808235,2444.2,2444.1,36.90647002]
[1751211657439,4.42484002,2444.8,2444.1,36.90647002]
[1751211657641,0.81789,2444.6,2444.5,3.2078]
[1751211657842,1.78563877,2444.6,2444.5,27.8678]
[1751211658343,1.78563877,2444.6,2444.5,28.68569]
[1751211664451,0.96774877,2444.6,2444.5,28.68569]
[1751211665161,1.78561877,2444.6,2444.5,28.68569]
[1751211665453,1.78561877,2444.6,2444.5,27.8678]
[1751211666150,1.78561877,2444.6,2444.5,28.6857]
[1751211666546,1.78561877,2444.6,2444.5,27.8678]
[1751211666752,1.78561877,2444.6,2444.5,28.6857]
[1751211667051,0.96774877,2444.6,2444.5,32.43434002]
[1751211667653,0.96774877,2444.6,2444.5,34.59324002]
[1751211668160,1.78561877,2444.6,2444.5,34.59324002]
[1751211668554,0.96774877,2444.6,2444.5,34.59324002]
[1751211670261,0.81781,2444.8,2444.7,0.81783]
[1751211670461,0.81781,2444.8,2444.7,35.48347002]
[1751211670662,1.78564057,2444.8,2444.7,35.48347002]
[1751211674452,1.78564057,2444.8,2444.5,9.11534002]
[1751211674658,0.81787,2444.7,2444.6,31.73285]
[1751211679063,0.81787,2444.7,2444.6,33.06325]
[1751211679567,0.81781,2444.8,2444.7,0.81779]
[1751211679765,0.81781,2444.8,2444.7,4.56643002]
[1751211679968,1.78495415,2444.8,2444.7,4.56643002]
[1751211680268,0.81781,2444.8,2444.7,4.56643002]
[1751211680970,0.81781,2444.8,2444.7,3.74864002]
[1751211682266,0.8178,2444.9,2444.8,0.81779]
[1751211682571,0.96733997,2444.9,2444.8,24.644]
[1751211682771,0.96733997,2444.9,2444.8,25.3223]
[1751211683269,1.78509997,2444.9,2444.8,26.14006]
[1751211684971,0.81776,2444.9,2444.8,26.14006]
[1751211686268,1.78569251,2444.9,2444.8,26.14006]
[1751211688175,1.78569251,2444.9,2444.8,29.34786]
[1751211689477,1.78569251,2444.9,2444.8,26.14006]
[1751211689978,1.78569251,2444.9,2444.8,28.5301]
[1751211690171,1.78569251,2444.9,2444.8,29.3479]
[1751211691281,0.81776,2444.9,2444.8,29.3479]
[1751211691483,1.78578472,2444.9,2444.8,28.5301]
[1751211692085,0.81776,2444.9,2444.8,28.5301]
[1751211692280,1.78584276,2444.9,2444.8,28.5301]
[1751211692489,1.78584276,2444.9,2444.8,29.3479]
[1751211692490,0.81776,2444.9,2444.8,29.3479]
[1751211693385,1.78775446,2444.9,2444.8,29.3479]
[1751211694884,1.78775446,2444.9,2444.8,26.1401]
[1751211695088,1.78775446,2444.9,2444.8,29.3479]
[1751211695783,1.78775446,2444.9,2444.8,31.97061336]
[1751211696284,1.78775446,2444.9,2444.8,31.15281336]
[1751211699792,4.41046782,2444.9,2444.8,28.5301]
[1751211700493,1.78775446,2444.9,2444.8,28.5301]
[1751211703291,1.78775446,2444.9,2444.8,25.3223]
[1751211703492,1.78775446,2444.9,2444.8,28.5301]